{"text_format":"1","workbook":"xlsx","n_sheets":6,"sheets":["Data Set","Column Function","Combining Functions","Non-volatile Formula","Altering Reference Style","VBA"],"not_rendered":{"charts":0,"images":0,"macros":1,"external_links":0,"defined_names":0,"comments":0,"pivot_tables":0},"unopened":[],"bounds":{"document_bytes":16777216,"sheet_cells":100000,"rows_first":2000,"rows_last":500,"rows_between":2000,"halvings":0,"cell_chars":16384,"cell_head_chars":4096},"cells_cut":0,"cells_raw":0,"read":"whole","date_system":"1900"}

{"sheet":"Data Set","index":0,"n_rows":10,"n_cols":2,"rows_kept":10,"cut":false,"hidden":false,"merged":[]}
[]
[null,"Sample Data Set"]
[]
[null,"Column Letter"]
[null,"A"]
[null,"F"]
[null,"AD"]
[null,"AEF"]
[null,"AZZ"]
[null,"XFD"]

{"sheet":"Column Function","index":1,"n_rows":6,"n_cols":3,"rows_kept":6,"cut":false,"hidden":false,"merged":[[1,1,1,2]]}
[]
[null,"Using COLUMN Function"]
[]
[null,"Conditions","Column Number"]
[null,"Column Number of a Specific Cell",{"$f":"COLUMN(B5)","v":2}]
[null,"Column Number of the Current Cell",{"$f":"COLUMN()","v":3}]

{"sheet":"Combining Functions","index":2,"n_rows":10,"n_cols":3,"rows_kept":10,"cut":false,"hidden":false,"merged":[[1,1,1,2]]}
[]
[null,"Combining COLUMN and INDIRECT Functions"]
[]
[null,"Column Letter","Column Number"]
[null,"A",{"$f":"COLUMN(INDIRECT(B5&\"1\"))","v":1}]
[null,"F",{"$f":"COLUMN(INDIRECT(B6&\"1\"))","v":6}]
[null,"AD",{"$f":"COLUMN(INDIRECT(B7&\"1\"))","v":30}]
[null,"AEF",{"$f":"COLUMN(INDIRECT(B8&\"1\"))","v":812}]
[null,"AZZ",{"$f":"COLUMN(INDIRECT(B9&\"1\"))","v":1378}]
[null,"XFD",{"$f":"COLUMN(INDIRECT(B10&\"1\"))","v":16384}]

{"sheet":"Non-volatile Formula","index":3,"n_rows":10,"n_cols":3,"rows_kept":10,"cut":false,"hidden":false,"merged":[[1,1,1,2]]}
[]
[null,"Applying Non-volatile Formula"]
[]
[null,"Column Letter","Column Number"]
[null,"A",{"$f":"MATCH(B5&\"1\", ADDRESS(1, COLUMN($1:$1), 4), 0)","v":1}]
[null,"F",{"$f":"MATCH(B6&\"1\", ADDRESS(1, COLUMN($1:$1), 4), 0)","v":6}]
[null,"AD",{"$f":"MATCH(B7&\"1\", ADDRESS(1, COLUMN($1:$1), 4), 0)","v":30}]
[null,"AEF",{"$f":"MATCH(B8&\"1\", ADDRESS(1, COLUMN($1:$1), 4), 0)","v":812}]
[null,"AZZ",{"$f":"MATCH(B9&\"1\", ADDRESS(1, COLUMN($1:$1), 4), 0)","v":1378}]
[null,"XFD",{"$f":"MATCH(B10&\"1\", ADDRESS(1, COLUMN($1:$1), 4), 0)","v":16384}]

{"sheet":"Altering Reference Style","index":4,"n_rows":10,"n_cols":3,"rows_kept":10,"cut":false,"hidden":false,"merged":[[1,1,1,2]]}
[]
[null,"Altering Reference Style"]
[]
[null,"Column Letter","Column Number"]
[null,"A",{"$f":"COLUMN(INDIRECT(B5&\"1\"))","v":1}]
[null,"F",{"$f":"COLUMN(INDIRECT(B6&\"1\"))","v":6}]
[null,"AD",{"$f":"COLUMN(INDIRECT(B7&\"1\"))","v":30}]
[null,"AEF",{"$f":"COLUMN(INDIRECT(B8&\"1\"))","v":812}]
[null,"AZZ",{"$f":"COLUMN(INDIRECT(B9&\"1\"))","v":1378}]
[null,"XFD",{"$f":"COLUMN(INDIRECT(B10&\"1\"))","v":16384}]

{"sheet":"VBA","index":5,"n_rows":10,"n_cols":2,"rows_kept":10,"cut":false,"hidden":false,"merged":[]}
[]
[null,"Applying VBA"]
[]
[null,"Column Letter"]
[null,"A"]
[null,"F"]
[null,"AD"]
[null,"AEF"]
[null,"AZZ"]
[null,"XFD"]